fUSD/lending_fUSD_20250708
["ID","MTS","AMOUNT","RATE_DAILY","PERIOD"]
[370358645,1751979042380,-479.42,0.00024657,2]
[370358646,1751979042390,-468.42,0.00024657,2]
[370358647,1751979042405,-460.0,0.00024657,2]
[370358648,1751979042416,-465.59,0.00024657,2]
[370358649,1751979042425,-500.0,0.00024657,2]
[370358650,1751979042435,-500.0,0.00024657,2]
[370358651,1751979042448,-460.0,0.00024657,2]
[370358652,1751979042460,-460.0,0.00024657,2]
[370358653,1751979042471,-460.0,0.00024657,2]
[370358654,1751979042483,-460.0,0.00024657,2]
[370358655,1751979042493,-460.0,0.00024657,2]
[370358656,1751979042504,-460.0,0.00024657,2]
[370358657,1751979042517,-460.0,0.00024657,2]
[370358658,1751979042527,-460.0,0.00024657,2]
[370358659,1751979042537,-460.0,0.00024657,2]
[370358660,1751979042546,-472.02,0.00024657,2]
[370358661,1751979042555,-557.12,0.00024657,2]
[370358662,1751979042565,-460.0,0.00024657,2]
[370358663,1751979042575,-460.0,0.00024657,2]
[370358664,1751979042586,-460.0,0.00024657,2]
[370358665,1751979042595,-460.0,0.00024657,2]
[370358666,1751979042607,-460.0,0.00024657,2]
[370358667,1751979042616,-547.45,0.00024657,2]
[370358668,1751979042627,-639.61,0.00024657,2]
[370358669,1751979042636,-460.0,0.00024657,2]
[370358670,1751979042646,-460.0,0.00024657,2]
[370358671,1751979042655,-460.0,0.00024657,2]
[370358672,1751979042665,-526.88,0.00024657,2]
[370358673,1751979042675,-460.0,0.00024657,2]
[370358674,1751979042684,-460.0,0.00024657,2]
[370358675,1751979042694,-460.0,0.00024657,2]
[370358676,1751979042703,-500.0,0.00024657,2]
[370358677,1751979042714,-460.0,0.00024657,2]
[370358678,1751979042723,-460.0,0.00024657,2]
[370358679,1751979042732,-460.0,0.00024657,2]
[370358680,1751979042743,-460.0,0.00024657,2]
[370358681,1751979042752,-460.0,0.00024657,2]
[370358682,1751979042762,-460.0,0.00024657,2]
[370358683,1751979042772,-542.5,0.00024657,2]
[370358684,1751979042782,-460.0,0.00024657,2]
[370358685,1751979042791,-460.0,0.00024657,2]
[370358686,1751979042801,-948.2,0.00024657,2]
[370358687,1751979042810,-460.0,0.00024657,2]
[370358688,1751979042819,-727.51,0.00024657,2]
[370358689,1751979042829,-460.0,0.00024657,2]
[370358690,1751979042838,-460.0,0.00024657,2]
[370358691,1751979042847,-460.0,0.00024657,2]
[370358692,1751979042857,-460.0,0.00024657,2]
[370358693,1751979042866,-460.0,0.00024657,2]
[370358694,1751979042876,-739.8,0.00024657,2]
[370358695,1751979042885,-476.69,0.00024657,2]
[370358696,1751979042895,-1621.53,0.00024657,2]
[370358697,1751979042904,-460.0,0.00024657,2]
[370358698,1751979042914,-460.0,0.00024657,2]
[370358699,1751979042923,-460.0,0.00024657,2]
[370358700,1751979042932,-460.0,0.00024657,2]
[370358701,1751979042941,-500.0,0.00024657,2]
[370358702,1751979042951,-500.0,0.00024657,2]
[370358703,1751979042960,-460.0,0.00024657,2]
[370358704,1751979042969,-494.75,0.00024657,2]
[370358705,1751979042979,-523.42,0.00024657,2]
[370358706,1751979042988,-460.0,0.00024657,2]
[370358707,1751979042997,-460.0,0.00024657,2]
[370358709,1751979043007,-688.47,0.00024657,2]
[370358710,1751979043016,-460.0,0.00024657,2]
[370358712,1751979043025,-460.0,0.00024657,2]
[370358714,1751979043035,-460.0,0.00024657,2]
[370358716,1751979043044,-460.0,0.00024657,2]
[370358717,1751979043053,-460.0,0.00024657,2]
[370358719,1751979043062,-460.0,0.00024657,2]
[370358721,1751979043071,-1450.94,0.00024657,2]
[370358723,1751979043080,-841.02,0.00024657,2]
[370358724,1751979043089,-460.0,0.00024657,2]
[370358725,1751979043099,-460.0,0.00024657,2]
[370358726,1751979043108,-567.4,0.00024657,2]
[370358727,1751979043117,-460.0,0.00024657,2]
[370358728,1751979043126,-460.0,0.00024657,2]
[370358729,1751979043136,-460.0,0.00024657,2]
[370358730,1751979043145,-482.88,0.00024657,2]
[370358731,1751979043155,-460.0,0.00024657,2]
[370358732,1751979043164,-805.82,0.00024657,2]
[370358734,1751979043173,-1250.42,0.00024657,2]
[370358735,1751979043183,-460.0,0.00024657,2]
[370358736,1751979043192,-460.0,0.00024657,2]
[370358738,1751979043201,-460.0,0.00024657,2]
[370358739,1751979043212,-460.0,0.00024657,2]
[370358740,1751979043222,-460.0,0.00024657,2]
[370358741,1751979043233,-460.0,0.00024657,2]
[370358742,1751979043242,-460.0,0.00024657,2]
[370358743,1751979043252,-906.03,0.00024657,2]
[370358744,1751979043262,-460.0,0.00024657,2]
[370358745,1751979043273,-460.0,0.00024657,2]
[370358746,1751979043284,-460.0,0.00024657,2]
[370358747,1751979043293,-460.0,0.00024657,2]
[370358748,1751979043302,-460.0,0.00024657,2]
[370358749,1751979043313,-460.0,0.00024657,2]
[370358750,1751979043322,-460.0,0.00024657,2]
[370358751,1751979043332,-460.0,0.00024657,2]
[370358752,1751979043342,-743.24,0.00024657,2]
[370358753,1751979043352,-460.0,0.00024657,2]
[370358754,1751979043364,-460.0,0.00024657,2]
[370358755,1751979043375,-460.0,0.00024657,2]
[370358756,1751979043387,-460.0,0.00024657,2]
[370358757,1751979043401,-460.0,0.00024657,2]
[370358758,1751979043413,-461.55090387,0.00024657,2]
[370358759,1751979043424,-460.0,0.00024657,2]
[370358760,1751979043435,-460.0,0.00024657,2]
[370358761,1751979043445,-460.0,0.00024657,2]
[370358762,1751979043456,-460.0,0.00024657,2]
[370358763,1751979043467,-460.0,0.00024657,2]
[370358764,1751979043477,-460.0,0.00024657,2]
[370358765,1751979043488,-460.0,0.00024657,2]
[370358766,1751979043497,-497.09366896,0.00024657,2]
[370358767,1751979043508,-460.0,0.00024657,2]
[370358768,1751979043518,-506.74,0.00024657,2]
[370358769,1751979043528,-510.48,0.00024657,2]
[370358770,1751979043537,-1225.28,0.00024657,2]
[370358771,1751979043547,-460.0,0.00024657,2]
[370358772,1751979043557,-460.0,0.00024657,2]
[370358773,1751979043566,-460.0,0.00024657,2]
[370358774,1751979043575,-460.0,0.00024657,2]
[370358775,1751979043585,-460.0,0.00024657,2]
[370358776,1751979043595,-460.0,0.00024657,2]
[370358777,1751979043604,-672.91,0.00024657,2]
[370358778,1751979043614,-460.0,0.00024657,2]
[370358779,1751979043623,-546.71887835,0.00024657,2]
[370358780,1751979043633,-460.0,0.00024657,2]
[370358782,1751979043642,-460.0,0.00024657,2]
[370358784,1751979043651,-460.0,0.00024657,2]
[370358786,1751979043661,-470.87,0.00024657,2]
[370358788,1751979043670,-408.20010585,0.00024657,2]
[370358789,1751979043679,-460.0,0.00024657,2]
[370358792,1751979043688,-460.0,0.00024657,2]
[370358795,1751979043697,-460.0,0.00024657,2]
[370358796,1751979043707,-460.0,0.00024657,2]
[370358797,1751979043717,-460.0,0.00024657,2]
[370358798,1751979043727,-460.0,0.00024657,2]
[370358799,1751979043737,-330.03935164,0.00024657,2]
[370358800,1751979043747,-515.76,0.00024657,2]
[370358801,1751979043757,-1062.34,0.00024657,2]
[370358802,1751979043766,-460.0,0.00024657,2]
[370358803,1751979043776,-460.0,0.00024657,2]
[370358804,1751979043786,-574.97,0.00024657,2]
[370358805,1751979043796,-460.0,0.00024657,2]
[370358806,1751979043806,-460.0,0.00024657,2]
[370358807,1751979043816,-460.0,0.00024657,2]
[370358808,1751979043825,-646.73,0.00024657,2]
[370358809,1751979043834,-460.0,0.00024657,2]
[370358810,1751979043844,-1162.34,0.00024657,2]
[370358811,1751979043853,-460.0,0.00024657,2]
[370358812,1751979043863,-737.8,0.00024657,2]
[370358813,1751979043873,-460.0,0.00024657,2]
[370358814,1751979043882,-460.0,0.00024657,2]
[370358815,1751979043892,-460.0,0.00024657,2]
[370358816,1751979043902,-174.136923,0.00024657,2]
[370358817,1751979043911,-460.0,0.00024657,2]
[370358818,1751979043920,-460.0,0.00024657,2]
[370358819,1751979043930,-460.0,0.00024657,2]
[370358820,1751979043940,-460.0,0.00024657,2]
[370358821,1751979043949,-327.50002768,0.00024657,2]
[370358822,1751979043959,-500.0,0.00024657,2]
[370358823,1751979043968,-500.0,0.00024657,2]
[370358824,1751979043977,-462.90929933,0.00024657,2]
[370358825,1751979043987,-1132.02,0.00024657,2]
[370358826,1751979043996,-574.91,0.00024657,2]
[370358827,1751979044005,-460.0,0.00024657,2]
[370358828,1751979044015,-460.0,0.00024657,2]
[370358829,1751979044025,-460.0,0.00024657,2]
[370358830,1751979044035,-460.0,0.00024657,2]
[370358831,1751979044044,-572.99,0.00024657,2]
[370358832,1751979044053,-460.0,0.00024657,2]
[370358833,1751979044063,-460.0,0.00024657,2]
[370358834,1751979044072,-491.27654619,0.00024657,2]
[370358835,1751979044081,-460.0,0.00024657,2]
[370358836,1751979044091,-564.87,0.00024657,2]
[370358837,1751979044100,-587.17,0.00024657,2]
[370358838,1751979044110,-460.0,0.00024657,2]
[370358839,1751979044119,-901.08,0.00024657,2]
[370358840,1751979044129,-460.0,0.00024657,2]
[370358841,1751979044138,-730.51,0.00024657,2]
[370358842,1751979044148,-491.89,0.00024657,2]
[370358843,1751979044158,-460.0,0.00024657,2]
[370358844,1751979044167,-460.0,0.00024657,2]
[370358845,1751979044176,-543.55,0.00024657,2]
[370358846,1751979044185,-460.0,0.00024657,2]
[370358847,1751979044194,-540.05,0.00024657,2]
[370358848,1751979044203,-1191.06,0.00024657,2]
[370358849,1751979044213,-161.052823,0.00024657,2]
[370358850,1751979044222,-158.736122,0.00024657,2]
[370358851,1751979044231,-1050.699052,0.00024657,2]
[370358852,1751979044241,-164.035611,0.00024657,2]
[370358853,1751979044250,-460.0,0.00024657,2]
[370358854,1751979044259,-460.0,0.00024657,2]
[370358855,1751979044269,-460.0,0.00024657,2]
[370358856,1751979044278,-460.0,0.00024657,2]
[370358857,1751979044288,-499.34838492,0.00024657,2]
[370358858,1751979044297,-1385.131194,0.00024657,2]
[370358859,1751979044307,-460.0,0.00024657,2]
[370358860,1751979044317,-460.0,0.00024657,2]
[370358861,1751979044327,-460.0,0.00024657,2]
[370358862,1751979044336,-601.38,0.00024657,2]
[370358863,1751979044346,-1392.44,0.00024657,2]
[370358864,1751979044356,-460.0,0.00024657,2]
[370358865,1751979044365,-1253.311921,0.00024657,2]
[370358866,1751979044374,-460.0,0.00024657,2]
[370358867,1751979044384,-460.0,0.00024657,2]
[370358868,1751979044394,-460.0,0.00024657,2]
[370358869,1751979044406,-460.0,0.00024657,2]
[370358870,1751979044415,-460.0,0.00024657,2]
[370358871,1751979044424,-460.0,0.00024657,2]
[370358872,1751979044435,-460.0,0.00024657,2]
[370358873,1751979044444,-558.26,0.00024657,2]
[370358874,1751979044454,-460.0,0.00024657,2]
[370358875,1751979044463,-460.0,0.00024657,2]
[370358876,1751979044474,-494.92502122,0.00024657,2]
[370358877,1751979044484,-695.04,0.00024657,2]
[370358878,1751979044494,-460.0,0.00024657,2]
[370358879,1751979044503,-1176.98,0.00024657,2]
[370358880,1751979044513,-460.0,0.00024657,2]
[370358881,1751979044523,-460.0,0.00024657,2]
[370358882,1751979044532,-460.0,0.00024657,2]
[370358883,1751979044541,-1014.36,0.00024657,2]
[370358884,1751979044550,-460.0,0.00024657,2]
[370358885,1751979044561,-645.73,0.00024657,2]
[370358886,1751979044571,-645.73,0.00024657,2]
[370358887,1751979044582,-460.0,0.00024657,2]
[370358888,1751979044591,-557.14,0.00024657,2]
[370358889,1751979044600,-460.0,0.00024657,2]
[370358890,1751979044609,-460.0,0.00024657,2]
[370358891,1751979044618,-539.37658457,0.00024657,2]
[370358892,1751979044627,-460.0,0.00024657,2]
[370358893,1751979044637,-504.19,0.00024657,2]
[370358894,1751979044646,-471.27,0.00024657,2]
[370358895,1751979044656,-460.0,0.00024657,2]
[370358896,1751979044666,-463.86,0.00024657,2]
[370358897,1751979044676,-609.88,0.00024657,2]
[370358898,1751979044685,-460.0,0.00024657,2]
[370358899,1751979044695,-1377.78,0.00024657,2]
[370358900,1751979044705,-460.0,0.00024657,2]
[370358901,1751979044715,-460.0,0.00024657,2]
[370358902,1751979044725,-586.07,0.00024657,2]
[370358903,1751979044735,-460.0,0.00024657,2]
[370358904,1751979044744,-460.0,0.00024657,2]
[370358905,1751979044754,-1547.29,0.00024657,2]
[370358906,1751979044763,-460.0,0.00024657,2]
[370358907,1751979044773,-460.0,0.00024657,2]
[370358908,1751979044782,-460.0,0.00024657,2]
[370358909,1751979044793,-460.0,0.00024657,2]
[370358910,1751979044803,-460.0,0.00024657,2]
[370358911,1751979044812,-460.0,0.00024657,2]
[370358912,1751979044822,-460.0,0.00024657,2]
[370358913,1751979044832,-765.83,0.00024657,2]
[370358914,1751979044841,-502.43909253,0.00024657,2]
[370358915,1751979044851,-460.0,0.00024657,2]
[370358916,1751979044861,-460.0,0.00024657,2]
[370358917,1751979044871,-460.0,0.00024657,2]
[370358918,1751979044880,-460.0,0.00024657,2]
[370358919,1751979044890,-460.0,0.00024657,2]
[370358920,1751979044900,-460.0,0.00024657,2]
[370358921,1751979044909,-568.61,0.00024657,2]
[370358922,1751979044919,-460.0,0.00024657,2]
[370358923,1751979044928,-460.0,0.00024657,2]
[370358924,1751979044938,-460.0,0.00024657,2]
[370358925,1751979044947,-641.15,0.00024657,2]
[370358926,1751979044956,-460.0,0.00024657,2]
[370358927,1751979044965,-490.10258306,0.00024657,2]
[370358928,1751979044975,-460.0,0.00024657,2]
[370358929,1751979044984,-460.0,0.00024657,2]
[370358930,1751979044993,-731.65,0.00024657,2]
[370358931,1751979045002,-158.1365174,0.00024657,2]
[370358932,1751979045011,-460.0,0.00024657,2]
[370358933,1751979045021,-460.0,0.00024657,2]
[370358934,1751979045030,-460.0,0.00024657,2]
[370358935,1751979045039,-167.73813556,0.00024657,2]
[370358936,1751979045048,-460.0,0.00024657,2]
[370358937,1751979045058,-460.0,0.00024657,2]
[370358938,1751979045067,-586.66,0.00024657,2]
[370358939,1751979045076,-460.0,0.00024657,2]
[370358940,1751979045086,-683.74,0.00024657,2]
[370358941,1751979045095,-460.0,0.00024657,2]
[370358942,1751979045104,-460.0,0.00024657,2]
[370358943,1751979045114,-460.0,0.00024657,2]
[370358944,1751979045123,-608.14,0.00024657,2]
[370358945,1751979045133,-460.0,0.00024657,2]
[370358946,1751979045142,-877.24,0.00024657,2]
[370358947,1751979045152,-460.0,0.00024657,2]
[370358948,1751979045161,-460.0,0.00024657,2]
[370358949,1751979045171,-460.0,0.00024657,2]
[370358950,1751979045180,-460.0,0.00024657,2]
[370358951,1751979045189,-737.16,0.00024657,2]
[370358952,1751979045199,-499.45258764,0.00024657,2]
[370358953,1751979045208,-460.0,0.00024657,2]
[370358954,1751979045430,-460.0,0.00024657,2]
[370358955,1751979045442,-460.0,0.00024657,2]
[370358956,1751979045451,-460.0,0.00024657,2]
[370358957,1751979045462,-461.69343051,0.00024657,2]
[370358958,1751979045471,-460.0,0.00024657,2]
[370358959,1751979045483,-460.0,0.00024657,2]
[370358960,1751979045493,-460.0,0.00024657,2]
[370358961,1751979045503,-460.0,0.00024657,2]
[370358962,1751979045513,-564.99,0.00024657,2]
[370358963,1751979045522,-460.0,0.00024657,2]
[370358964,1751979045531,-460.0,0.00024657,2]
[370358965,1751979045541,-460.0,0.00024657,2]
[370358966,1751979045550,-479.93,0.00024657,2]
[370358967,1751979045559,-460.0,0.00024657,2]
[370358968,1751979045569,-460.0,0.00024657,2]
[370358969,1751979045578,-598.27,0.00024657,2]
[370358970,1751979045587,-460.0,0.00024657,2]
[370358971,1751979045597,-528.9,0.00024657,2]
[370358972,1751979045606,-565.45,0.00024657,2]
[370358973,1751979045617,-460.0,0.00024657,2]
[370358974,1751979045626,-460.0,0.00024657,2]
[370358975,1751979045636,-460.0,0.00024657,2]
[370358976,1751979045647,-460.0,0.00024657,2]
[370358977,1751979045656,-460.0,0.00024657,2]
[370358978,1751979045666,-460.0,0.00024657,2]
[370358979,1751979045677,-460.0,0.00024657,2]
[370358980,1751979045687,-461.56833412,0.00024657,2]
[370358981,1751979045696,-783.18,0.00024657,2]
[370358982,1751979045706,-460.0,0.00024657,2]
[370358983,1751979045715,-460.0,0.00024657,2]
[370358984,1751979045724,-460.0,0.00024657,2]
[370358985,1751979045734,-1838.69,0.00024657,2]
[370358986,1751979045743,-460.0,0.00024657,2]
[370358987,1751979045753,-460.0,0.00024657,2]
[370358988,1751979045763,-460.0,0.00024657,2]
[370358989,1751979045772,-460.0,0.00024657,2]
[370358990,1751979045782,-460.0,0.00024657,2]
[370358991,1751979045791,-460.0,0.00024657,2]
[370358992,1751979045801,-727.09,0.00024657,2]
[370358993,1751979045811,-460.0,0.00024657,2]
[370358994,1751979045820,-474.83,0.00024657,2]
[370358995,1751979045829,-460.0,0.00024657,2]
[370358996,1751979045839,-520.0,0.00024657,2]
[370358997,1751979045850,-460.0,0.00024657,2]
[370358998,1751979045859,-460.0,0.00024657,2]
[370358999,1751979045869,-1632.42,0.00024657,2]
[370359000,1751979045878,-460.0,0.00024657,2]
[370359001,1751979045889,-460.0,0.00024657,2]
[370359002,1751979045899,-460.0,0.00024657,2]
[370359003,1751979045908,-460.0,0.00024657,2]
[370359004,1751979045919,-460.0,0.00024657,2]
[370359005,1751979045930,-460.0,0.00024657,2]
[370359006,1751979045942,-460.0,0.00024657,2]
[370359007,1751979045952,-460.0,0.00024657,2]
[370359008,1751979045961,-460.0,0.00024657,2]
[370359009,1751979045973,-460.0,0.00024657,2]
[370359010,1751979045983,-460.0,0.00024657,2]
[370359011,1751979045992,-460.0,0.00024657,2]
[370359012,1751979046003,-498.94,0.00024657,2]
[370359013,1751979046012,-520.16784852,0.00024657,2]
[370359014,1751979046023,-460.0,0.00024657,2]
[370359015,1751979046035,-867.34,0.00024657,2]
[370359016,1751979046045,-460.0,0.00024657,2]
[370359017,1751979046054,-460.0,0.00024657,2]
[370359018,1751979046065,-460.0,0.00024657,2]
[370359019,1751979046075,-460.0,0.00024657,2]
[370359020,1751979046085,-460.0,0.00024657,2]
[370359021,1751979046095,-460.0,0.00024657,2]
[370359022,1751979046105,-240.91103304,0.00024657,2]
[370359023,1751979046115,-460.0,0.00024657,2]
[370359024,1751979046125,-460.0,0.00024657,2]
[370359025,1751979046136,-460.0,0.00024657,2]
[370359026,1751979046146,-463.05,0.00024657,2]
[370359027,1751979046159,-460.0,0.00024657,2]
[370359028,1751979046170,-460.0,0.00024657,2]
[370359029,1751979046181,-460.0,0.00024657,2]
[370359030,1751979046190,-460.0,0.00024657,2]
[370359031,1751979046201,-460.0,0.00024657,2]
[370359032,1751979046210,-460.0,0.00024657,2]
[370359033,1751979046219,-525.11,0.00024657,2]
[370359034,1751979046229,-460.0,0.00024657,2]
[370359035,1751979046238,-460.0,0.00024657,2]
[370359036,1751979046247,-460.0,0.00024657,2]
[370359037,1751979046256,-523.0,0.00024657,2]
[370359038,1751979046266,-460.0,0.00024657,2]
[370359039,1751979046275,-460.0,0.00024657,2]
[370359040,1751979046285,-460.0,0.00024657,2]
[370359041,1751979046295,-460.0,0.00024657,2]
[370359042,1751979046304,-460.0,0.00024657,2]
[370359043,1751979046313,-3591.26,0.00024657,2]
[370359044,1751979046322,-460.0,0.00024657,2]
[370359045,1751979046332,-460.0,0.00024657,2]
[370359046,1751979046341,-460.0,0.00024657,2]
[370359047,1751979046350,-460.0,0.00024657,2]
[370359048,1751979046359,-460.0,0.00024657,2]
[370359049,1751979046369,-460.0,0.00024657,2]
[370359050,1751979046379,-460.0,0.00024657,2]
[370359051,1751979046389,-460.0,0.00024657,2]
[370359052,1751979046402,-460.0,0.00024657,2]
[370359053,1751979046411,-460.0,0.00024657,2]
[370359054,1751979046420,-460.0,0.00024657,2]
[370359055,1751979046430,-460.0,0.00024657,2]
[370359056,1751979046441,-425.42107368,0.00024657,2]
[370359058,1751979046450,-460.0,0.00024657,2]
[370359060,1751979046459,-460.0,0.00024657,2]
[370359062,1751979046469,-491.39062638,0.00024657,2]
[370359063,1751979046479,-1052.88,0.00024657,2]
[370359065,1751979046490,-460.0,0.00024657,2]
[370359067,1751979046499,-460.0,0.00024657,2]
[370359068,1751979046508,-2040.76,0.00024657,2]
[370359069,1751979046517,-1223.46,0.00024657,2]
[370359070,1751979046527,-460.0,0.00024657,2]
[370359071,1751979046537,-460.0,0.00024657,2]
[370359072,1751979046546,-460.0,0.00024657,2]
[370359073,1751979046555,-460.0,0.00024657,2]
[370359074,1751979046564,-460.0,0.00024657,2]
[370359075,1751979046574,-460.0,0.00024657,2]
[370359076,1751979046583,-460.0,0.00024657,2]
[370359077,1751979046592,-460.0,0.00024657,2]
[370359078,1751979046602,-460.0,0.00024657,2]
[370359079,1751979046611,-906.91,0.00024657,2]
[370359080,1751979046620,-519.36,0.00024657,2]
[370359081,1751979046629,-460.0,0.00024657,2]
[370359082,1751979046639,-460.0,0.00024657,2]
[370359083,1751979046648,-642.17,0.00024657,2]
[370359084,1751979046658,-703.4,0.00024657,2]
[370359085,1751979046667,-460.0,0.00024657,2]
[370359086,1751979046676,-460.0,0.00024657,2]
[370359087,1751979046686,-151.75934839,0.00024657,2]
[370359088,1751979046695,-1167.5,0.00024657,2]
[370359089,1751979046705,-1680.34,0.00024657,2]
[370359090,1751979046714,-460.0,0.00024657,2]
[370359091,1751979046724,-1118.44,0.00024657,2]
[370359092,1751979046734,-460.0,0.00024657,2]
[370359093,1751979046743,-460.0,0.00024657,2]
[370359094,1751979046753,-460.0,0.00024657,2]
[370359095,1751979046762,-460.0,0.00024657,2]
[370359096,1751979046771,-521.05209172,0.00024657,2]
[370359097,1751979046781,-460.0,0.00024657,2]
[370359098,1751979046791,-678.01,0.00024657,2]
[370359099,1751979046800,-460.0,0.00024657,2]
[370359100,1751979046810,-500.0,0.00024657,2]
[370359101,1751979046819,-491.25527125,0.00024657,2]
[370359102,1751979046829,-460.0,0.00024657,2]
[370359103,1751979046838,-460.0,0.00024657,2]
[370359104,1751979046847,-460.0,0.00024657,2]
[370359105,1751979046857,-460.0,0.00024657,2]
[370359106,1751979046867,-460.0,0.00024657,2]
[370359107,1751979046876,-460.0,0.00024657,2]
[370359108,1751979046885,-460.0,0.00024657,2]
[370359109,1751979046895,-545.04,0.00024657,2]
[370359110,1751979046904,-1068.39,0.00024657,2]
[370359111,1751979046914,-460.0,0.00024657,2]
[370359112,1751979046923,-460.0,0.00024657,2]
[370359113,1751979046933,-460.0,0.00024657,2]
[370359114,1751979046943,-460.0,0.00024657,2]
[370359115,1751979046953,-460.0,0.00024657,2]
[370359116,1751979046963,-460.0,0.00024657,2]
[370359117,1751979046973,-460.0,0.00024657,2]
[370359118,1751979046982,-515.2,0.00024657,2]
[370359119,1751979046991,-460.0,0.00024657,2]
[370359120,1751979047001,-460.0,0.00024657,2]
[370359121,1751979047010,-460.0,0.00024657,2]
[370359122,1751979047020,-460.0,0.00024657,2]
[370359123,1751979047030,-460.0,0.00024657,2]
[370359124,1751979047040,-460.0,0.00024657,2]
[370359125,1751979047050,-460.0,0.00024657,2]
[370359126,1751979047060,-644.57,0.00024657,2]
[370359127,1751979047069,-506.62,0.00024657,2]
[370359128,1751979047079,-460.0,0.00024657,2]
[370359129,1751979047089,-1968.44,0.00024657,2]
[370359130,1751979047098,-490.0,0.00024657,2]
[370359131,1751979047107,-2728.94,0.00024657,2]
[370359132,1751979047117,-642.0,0.00024657,2]
[370359133,1751979047127,-655.95,0.00024657,2]
[370359134,1751979047136,-693.22,0.00024657,2]
[370359135,1751979047146,-462.3285242,0.00024657,2]
[370359136,1751979047155,-460.0,0.00024657,2]
[370359137,1751979047166,-460.0,0.00024657,2]
[370359138,1751979047175,-460.0,0.00024657,2]
[370359139,1751979047185,-460.0,0.00024657,2]
[370359140,1751979047195,-460.0,0.00024657,2]
[370359141,1751979047205,-460.0,0.00024657,2]
[370359142,1751979047214,-460.0,0.00024657,2]
[370359143,1751979047224,-4015.62,0.00024657,2]
[370359144,1751979047233,-460.0,0.00024657,2]
[370359145,1751979047243,-2093.85,0.00024657,2]
[370359146,1751979047252,-460.0,0.00024657,2]
[370359147,1751979047261,-460.0,0.00024657,2]
[370359148,1751979047271,-2138.94,0.00024657,2]
[370359149,1751979047280,-567.85,0.00024657,2]
[370359150,1751979047291,-460.0,0.00024657,2]
[370359151,1751979047300,-460.0,0.00024657,2]
[370359152,1751979047310,-435.51770781,0.00024657,2]
[370359153,1751979047319,-460.0,0.00024657,2]
[370359154,1751979047329,-460.0,0.00024657,2]
[370359155,1751979047338,-460.0,0.00024657,2]
[370359156,1751979047347,-460.0,0.00024657,2]
[370359157,1751979047356,-460.0,0.00024657,2]
[370359158,1751979047365,-460.0,0.00024657,2]
[370359159,1751979047375,-486.39340564,0.00024657,2]
[370359160,1751979047384,-460.0,0.00024657,2]
[370359161,1751979047393,-631.0,0.00024657,2]
[370359162,1751979047407,-4127.49,0.00024657,2]
[370359163,1751979047416,-673.81,0.00024657,2]
[370359164,1751979047425,-610.46,0.00024657,2]
[370359165,1751979047435,-460.0,0.00024657,2]
[370359166,1751979047445,-460.0,0.00024657,2]